bitfinex/quotes_ETHUSD_20250822
["timestamp","ask_amount","ask_price","bid_price","bid_amount"]
[1755840806459,0.02,4295.8,4295.7,2.9879093]
[1755840807369,0.02,4295.8,4295.7,6.8939093]
[1755840807681,0.02,4295.8,4295.7,8.09544183]
[1755840807883,0.02,4295.8,4295.7,8.18875883]
[1755840808467,0.02,4295.8,4295.7,12.47875883]
[1755840811369,0.02,4295.8,4295.7,8.57275883]
[1755840811707,0.02,4295.8,4295.7,12.47875883]
[1755840812194,0.02,4295.8,4295.7,10.15084953]
[1755840812488,0.02,4295.8,4295.7,0.093317]
[1755840812786,0.02,4295.8,4295.7,4.000317]
[1755840813288,0.02,4295.8,4295.7,4.660317]
[1755840813986,0.02,4295.8,4295.7,6.9882263]
[1755840820288,0.02,4295.8,4295.7,3.0812263]
[1755840820587,0.02,4295.8,4295.7,7.95815058]
[1755840822880,0.02,4295.8,4295.7,4.05115058]
[1755840823051,0.02,4295.8,4295.7,7.95615058]
[1755840829176,0.02,4295.8,4295.7,4.05115058]
[1755840829479,0.02,4295.8,4295.7,2.4212263]
[1755840829659,0.02,4295.8,4295.7,0.093317]
[1755840830195,0.02,4295.8,4295.7,3.0812263]
[1755840830389,0.02,4295.8,4295.7,2.4212263]
[1755840830763,0.02,4295.8,4295.7,3.0812263]
[1755840830962,0.02,4295.8,4295.7,0.753317]
[1755840831585,0.02,4295.8,4295.7,3.0812263]
[1755840831779,0.38433778,4295.8,4295.7,3.0812263]
[1755840835779,0.02,4295.8,4295.7,3.0812263]
[1755840835982,0.02,4295.8,4295.7,0.753317]
[1755840839193,0.38435042,4295.8,4295.7,0.753317]
[1755840839893,0.38435042,4295.8,4295.7,0.093317]
[1755840842272,13.96532789,4295.8,4295.7,0.093317]
[1755840843102,7.29735042,4295.8,4295.7,0.093317]
[1755840843303,13.96532789,4295.8,4295.7,0.093317]
[1755840848579,13.96332789,4295.8,4295.7,0.093317]
[1755840848823,7.29535042,4295.8,4295.7,0.093317]
[1755840849116,4.29535042,4295.8,4295.7,0.093317]
[1755840849480,4.29535042,4295.8,4295.7,0.394917]
[1755840849684,4.29735042,4295.8,4295.7,0.844917]
[1755840850203,4.29735042,4295.8,4295.7,0.394917]
[1755840850407,4.29735042,4295.8,4295.7,0.093317]
[1755840850811,11.06432789,4295.8,4295.7,0.093317]
[1755840851015,11.43512789,4295.8,4295.7,0.093317]
[1755840851524,11.06432789,4295.8,4295.7,0.093317]
[1755840851686,11.43782789,4295.8,4295.7,0.093317]
[1755840851882,14.43782789,4295.8,4295.7,0.093317]
[1755840855584,14.07347747,4295.8,4295.7,0.093317]
[1755840856002,14.43793382,4295.8,4295.7,0.093317]
[1755840856497,3.0,4295.7,4294.8,0.001]
[1755840856815,9.97667747,4294.9,4294.8,0.001]
[1755840857124,15.67967747,4294.9,4294.8,0.001]
[1755840857491,16.04420372,4294.9,4294.8,0.001]
[1755840858623,16.20730372,4294.9,4294.8,0.001]
[1755840858993,16.04420372,4294.9,4294.8,0.001]
[1755840859194,11.82350372,4294.9,4294.8,0.001]
[1755840859508,6.07152625,4294.9,4294.8,0.7526]
[1755840862307,2.15552625,4294.9,4294.8,0.7526]
[1755840862503,2.15552625,4294.9,4294.8,1.4126]
[1755840862504,6.07252625,4294.9,4294.8,1.4126]
[1755840862915,4.28152625,4294.9,4294.8,1.4126]
[1755840864418,4.28152625,4294.9,4294.8,0.7526]
[1755840867654,3.917,4294.9,4294.8,0.7526]
[1755840869632,6.66797747,4295.4,4294.8,0.7526]
[1755840869633,1.791,4295.6,4294.9,0.66]
[1755840869832,3.916,4295.5,4295.0,0.45]
[1755840870139,1.791,4295.6,4295.4,0.3016]
[1755840870351,6.916,4295.5,4295.4,0.3016]
[1755840870941,3.916,4295.5,4295.4,0.7516]
[1755840871233,3.0,4295.5,4295.4,1.4116]
[1755840871405,3.915,4295.6,4295.4,1.4116]
[1755840871610,6.915,4295.6,4295.5,0.45]
[1755840871811,0.02,4295.8,4295.5,0.7516]
[1755840872033,0.36440432,4295.6,4295.5,0.7516]
[1755840872218,0.36440432,4295.6,4295.5,0.3016]
[1755840872748,0.36440432,4295.6,4295.5,0.7516]
[1755840873349,0.36440432,4295.6,4295.5,1.4116]
[1755840874051,0.36440432,4295.6,4295.5,4.41472926]
[1755840874653,0.36440432,4295.6,4295.5,4.43800943]
[1755840874842,0.02,4295.8,4295.7,2.9879093]
[1755840875037,0.02,4295.8,4295.7,3.2895093]
[1755840875241,0.02,4295.8,4295.7,3.7395093]
[1755840875438,0.02,4295.8,4295.7,4.47977316]
[1755840876354,0.02,4295.8,4295.7,4.50305225]
[1755840876923,0.02,4295.8,4295.7,4.47977316]
[1755840877149,0.02,4295.8,4295.7,4.50305225]
[1755840880252,0.02,4295.8,4295.7,4.47977316]
[1755840881129,0.02,4295.8,4295.7,4.59637525]
[1755840881537,0.02,4295.8,4295.7,4.57309616]
[1755840882229,0.02,4295.8,4295.7,8.48809616]
[1755840888363,0.02,4295.8,4295.7,12.77809616]
[1755840888760,0.02,4295.8,4295.7,7.84279616]
[1755840888929,0.02,4295.8,4295.7,8.50279616]
[1755840891734,0.02,4295.8,4295.7,8.49779616]
[1755840896637,0.02,4295.8,4295.7,4.12309616]
[1755840896865,0.02,4295.8,4295.7,7.73049616]
[1755840897034,0.02,4295.8,4295.7,8.01889616]
[1755840897247,0.02,4295.8,4295.7,8.48359616]
[1755840898563,0.02,4295.8,4295.7,11.48359616]
[1755840901485,0.02,4295.8,4295.7,11.48259616]
[1755840901857,0.02,4295.8,4295.7,7.57459616]
[1755840902059,0.02,4295.8,4295.7,11.48259616]
[1755840905245,0.02,4295.8,4295.7,11.48259616]
[1755840907996,0.002,4296.2,4296.0,2.32774674]
[1755840908288,0.002,4296.2,4296.1,12.36992161]
[1755840908492,0.002,4296.2,4296.1,16.25264469]
[1755840908694,0.002,4296.2,4296.1,15.95044469]
[1755840908864,0.002,4296.2,4296.1,16.04374869]
[1755840910850,0.002,4296.2,4296.1,5.46977122]
[1755840911055,0.002,4296.2,4296.1,8.77699655]
[1755840911488,0.002,4296.2,4296.1,8.77599655]
[1755840912007,0.002,4296.2,4296.1,4.87099655]
[1755840912154,0.002,4296.2,4296.1,8.77599655]
[1755840913955,0.002,4296.2,4296.1,8.95343997]
[1755840914150,0.002,4296.2,4296.1,10.08156251]
[1755840915695,0.002,4296.2,4296.1,16.74953998]
[1755840917807,0.002,4296.2,4296.1,21.03953998]
[1755840918104,1e-08,4296.3,4296.2,2.98763837]
[1755840918290,0.002,4296.6,4296.5,2.98747585]
[1755840918494,0.002,4296.6,4296.5,14.11955805]
[1755840918668,0.002,4296.6,4296.5,14.0962833]
[1755840919160,0.002,4296.6,4296.5,14.7959923]
[1755840920904,1e-08,4296.6,4296.5,14.7959923]
[1755840921278,1e-08,4296.6,4296.5,17.7959923]
[1755840923774,1e-08,4296.8,4296.7,2.98736751]
[1755840923970,1e-08,4296.8,4296.7,9.06957716]
[1755840924217,1e-08,4296.8,4296.7,16.33630349]
[1755840924519,1e-08,4296.8,4296.7,16.83653949]
[1755840925305,1e-08,4296.8,4296.7,19.29253949]
[1755840925466,1e-08,4296.8,4296.7,16.83653949]
[1755840927204,1e-08,4296.8,4296.7,12.93053949]
[1755840927410,1e-08,4296.8,4296.7,16.83553949]
[1755840931775,1e-08,4297.1,4297.0,2.98720502]
[1755840931975,1e-08,4297.1,4297.0,8.68220502]
[1755840932209,1e-08,4297.1,4297.0,8.79820502]
[1755840932606,1e-08,4297.1,4297.0,8.89147602]
[1755840935118,0.02,4297.8,4297.7,5.98682597]
[1755840935414,0.02,4297.8,4297.7,11.15730631]
[1755840936125,0.02,4297.8,4297.7,11.85677131]
[1755840939111,0.3127,4297.8,4297.7,7.95177131]
[1755840939418,0.02,4297.8,4297.7,11.85577131]
[1755840939597,0.002,4298.0,4297.9,2.98671769]
[1755840939775,0.2947,4298.0,4297.9,11.30896659]
[1755840939980,0.2947,4298.0,4297.9,13.09896659]
[1755840941100,0.2947,4298.0,4297.9,13.46307859]
[1755840941420,0.002,4298.0,4297.9,13.77607859]
[1755840941581,0.002,4298.0,4297.9,14.24807859]
[1755840942127,0.3735,4298.9,4298.7,2.98628469]
[1755840942330,0.119,4298.8,4298.7,6.91354753]
[1755840942538,0.119,4298.8,4298.7,6.89028469]
[1755840942897,0.119,4298.8,4298.7,7.26378469]
[1755840943401,0.02,4298.8,4298.7,8.2227987]
[1755840943601,0.02,4298.8,4298.7,10.3257987]
[1755840943996,0.02,4298.8,4298.7,13.0127987]
[1755840944192,1e-08,4298.8,4298.7,13.3257987]
[1755840944426,1e-08,4298.8,4298.7,23.8370537]
[1755840944935,1e-08,4298.8,4298.7,26.70654802]
[1755840945231,0.02,4299.8,4299.7,5.98574365]
[1755840945535,0.02,4299.8,4299.7,12.51089998]
[1755840945840,0.3127,4299.8,4299.7,12.51089998]
[1755840946213,0.3127,4299.8,4299.7,12.88439998]
[1755840946622,0.3127,4299.8,4299.7,12.88739998]
[1755840947229,0.02,4299.8,4299.7,12.88739998]
[1755840947603,0.02,4299.8,4299.7,8.97939998]
[1755840947926,0.02,4299.8,4299.7,13.67139998]
[1755840948301,0.02,4299.8,4299.7,12.88639998]
[1755840949203,0.02,4299.8,4299.7,13.19939998]
[1755840949415,0.02,4299.8,4299.7,13.67139998]
[1755840950011,0.119,4299.8,4299.7,8.97939998]
[1755840950233,0.02,4299.8,4299.7,12.88539998]
[1755840950436,0.02,4299.8,4299.7,8.97939998]
[1755840950624,0.02,4299.8,4299.7,12.88539998]
[1755840951836,0.0218,4299.8,4299.7,12.88539998]
[1755840952752,0.02,4299.8,4299.7,12.88539998]
[1755840953561,0.0255,4299.8,4299.7,12.88539998]
[1755840953763,0.0255,4299.8,4299.7,12.88439998]
[1755840954231,0.3127,4299.8,4299.7,12.88439998]
[1755840954827,0.3127,4299.8,4299.7,8.97939998]
[1755840955026,0.3127,4299.8,4299.7,12.88339998]
[1755840955440,0.02,4299.8,4299.7,13.19639998]
[1755840955750,0.02,4299.8,4299.7,13.66839998]
[1755840957358,0.02,4299.8,4299.7,12.88339998]
[1755840957559,0.3127,4299.8,4299.7,12.88339998]
[1755840958261,0.02,4299.8,4299.7,13.66839998]
[1755840959227,0.02,4299.8,4299.7,13.19639998]
[1755840960175,0.02,4299.8,4299.7,9.29239998]
[1755840960321,0.1171,4299.8,4299.7,8.97939998]
[1755840960525,0.1171,4299.8,4299.7,12.88139998]
[1755840960848,0.1171,4299.8,4299.7,8.97939998]
[1755840961049,0.1171,4299.8,4299.7,12.88139998]
[1755840962449,0.1171,4299.8,4299.7,5.97939998]
[1755840962647,0.4906,4299.8,4299.7,8.39024365]
[1755840962847,0.1171,4299.8,4299.7,8.39024365]
[1755840963050,0.1171,4299.8,4299.7,4.48824365]
[1755840963372,0.4906,4299.8,4299.7,8.39024365]
[1755840963563,0.1171,4299.8,4299.7,8.39024365]
[1755840963763,0.1171,4299.8,4299.7,9.05024365]
[1755840963970,0.4906,4299.8,4299.7,2.1625]
[1755840964185,0.4906,4299.8,4299.7,4.2755]
[1755840966156,0.4906,4299.8,4299.7,0.3735]
[1755840966343,0.4906,4299.8,4299.7,4.2755]
[1755840967057,0.4906,4299.8,4299.7,0.3735]
[1755840967978,3.4906,4299.8,4299.7,0.3735]
[1755840969280,3.85470571,4299.8,4299.7,0.3735]
[1755840970148,0.48120571,4299.8,4299.7,0.3735]
[1755840970445,0.85470571,4299.8,4299.7,0.3735]
[1755840970772,0.48120571,4299.8,4299.7,0.3735]
[1755840972678,0.85390571,4299.8,4299.7,0.3735]
[1755840973293,0.67330571,4299.8,4299.7,0.3735]
[1755840973458,0.38410571,4299.8,4299.7,0.3735]
[1755840973796,0.38410571,4299.8,4299.7,0.6737]
[1755840974558,0.38410571,4299.8,4299.7,1.3337]
[1755840974756,0.38410571,4299.8,4299.7,4.10894365]
[1755840974989,0.38410571,4299.8,4299.7,5.14273239]
[1755840975376,0.02,4299.8,4299.7,5.14273239]
[1755840975991,0.02,4299.8,4299.7,9.04573239]
[1755840977890,0.02,4299.8,4299.7,8.59623239]
[1755840978887,0.02,4299.8,4299.7,7.63603239]
[1755840979089,0.02,4299.8,4299.7,9.04573239]
[1755840980206,0.02,4299.8,4299.7,12.04573239]
[1755840980980,0.3092,4299.8,4299.7,4.2805]
[1755840981711,0.02,4299.8,4299.7,0.3735]
[1755840982233,0.119,4299.8,4299.7,0.3735]
[1755840982782,0.119,4299.8,4299.7,1.0335]
[1755840983729,0.119,4299.8,4299.7,4.9445]
[1755840985300,0.02,4299.8,4299.7,4.9445]
[1755840986810,0.02,4299.8,4299.7,0.3735]
[1755840990168,7.05203498,4299.8,4299.7,0.3735]
[1755840990367,10.05203498,4299.8,4299.7,0.3735]
[1755840992458,13.96103498,4299.8,4299.7,0.3735]
[1755840993360,10.05203498,4299.8,4299.7,0.3735]
[1755840993564,13.96103498,4299.8,4299.7,0.3735]
[1755840996025,13.59697747,4299.8,4299.7,0.3735]
[1755840997768,13.59497747,4299.8,4299.7,0.3735]
[1755840998784,13.95907727,4299.8,4299.7,0.3735]
[1755841003005,7.2910998,4299.8,4299.7,0.3735]
[1755841003376,4.2910998,4299.8,4299.7,0.3735]
[1755841004471,13.95907727,4299.8,4299.7,0.3735]
[1755841004694,3.0,4299.7,4298.2,0.001]
[1755841004899,1.789,4299.6,4298.2,0.001]
[1755841005168,3.0,4298.8,4298.7,0.3735]
[1755841005377,6.908,4298.8,4298.7,0.3735]
[1755841007791,15.36497747,4298.8,4298.7,0.3735]
[1755841008171,3.0,4298.7,4298.2,0.001]
[1755841008383,3.0,4298.5,4298.2,0.001]
[1755841008570,6.66797747,4298.7,4298.2,0.001]
[1755841008571,3.919,4298.4,4298.2,0.3745]
[1755841010606,9.66797747,4298.3,4298.2,0.3745]
[1755841010809,9.66797747,4298.3,4298.2,0.001]
[1755841011512,10.03221906,4298.3,4298.2,0.001]
[1755841014287,3.36424159,4298.3,4298.2,0.001]
[1755841016412,3.0,4298.3,4298.2,0.001]
[1755841018994,3.916,4298.3,4298.2,0.001]
[1755841019212,4.28022588,4298.3,4298.2,0.001]
[1755841019399,4.28022588,4298.3,4298.2,0.3755]
[1755841021043,21.64324925,4298.3,4298.2,0.3755]
[1755841021196,21.64324925,4298.3,4298.2,0.001]
[1755841022230,3.0,4298.2,4297.8,0.02]
[1755841022429,3.0,4298.0,4297.8,0.02]
[1755841022634,34.79,4298.0,4297.8,0.02]
[1755841023033,34.79,4298.0,4297.3,0.001]
[1755841023331,17.36302337,4297.4,4297.3,0.001]
[1755841023547,21.28302337,4297.4,4297.3,0.001]
[1755841024099,21.64741786,4297.4,4297.3,0.001]
[1755841025539,21.28302337,4297.4,4297.3,0.001]
[1755841026504,6.92,4297.4,4297.3,0.001]
[1755841027555,3.92,4297.4,4297.3,0.001]
[1755841029730,4.28433329,4297.4,4297.3,0.001]
[1755841030034,4.28533329,4297.4,4297.3,0.001]
[1755841034051,7.28533329,4297.4,4297.3,0.001]
[1755841035267,9.74133329,4297.4,4297.3,0.001]
[1755841035453,7.28533329,4297.4,4297.3,0.001]
[1755841035760,6.921,4297.4,4297.3,0.001]
[1755841035964,36.921,4297.4,4297.3,0.001]
[1755841037257,33.0,4297.3,4296.8,0.02]
[1755841037470,17.36302337,4296.9,4296.8,0.02]
[1755841037731,21.28502337,4296.9,4296.8,0.02]
[1755841039762,21.64943293,4296.9,4296.8,0.02]
[1755841039961,3.0,4296.8,4296.4,0.001]
[1755841040170,3.0,4296.6,4296.4,0.001]
[1755841040354,14.72743293,4296.9,4296.4,0.001]
[1755841040355,6.921,4296.5,4296.4,0.001]
[1755841042334,36.921,4296.5,4296.4,0.001]
[1755841042936,6.921,4296.5,4296.4,0.001]
[1755841043472,7.0179,4296.5,4296.4,0.001]
[1755841044379,13.66981545,4296.5,4296.4,0.001]
[1755841047152,13.67081545,4296.5,4296.4,0.001]
[1755841047358,13.66981545,4296.5,4296.4,0.001]
[1755841047754,13.66981545,4296.5,4295.9,0.001]
[1755841047755,33.0,4296.4,4295.9,0.001]
[1755841047977,9.74791545,4296.0,4295.9,0.001]
[1755841048178,13.66491545,4296.0,4295.9,0.001]
[1755841049284,33.0,4295.9,4295.5,0.001]
[1755841049581,3.0,4295.5,4294.8,0.4627]
[1755841049782,9.65191545,4295.1,4294.8,0.4627]
[1755841049973,13.56991545,4295.1,4294.8,0.4627]
[1755841050376,13.56991545,4295.1,4295.0,0.3128]
[1755841050663,6.918,4295.1,4295.0,0.7545]
[1755841052383,7.2825202,4295.1,4295.0,0.7545]
[1755841055995,3.3645202,4295.1,4295.0,0.7545]
[1755841056192,7.2805202,4295.1,4295.0,0.7545]
[1755841056363,6.916,4295.1,4295.0,0.7545]
[1755841056560,3.0,4295.1,4295.0,0.7545]
[1755841056760,3.915,4295.1,4295.0,0.7545]
[1755841056961,3.916,4295.1,4295.0,0.7545]
[1755841057475,1.791,4295.4,4295.0,0.7545]
[1755841057706,3.916,4295.3,4295.1,0.4417]
[1755841057877,3.917,4295.4,4295.3,0.3118]
[1755841058199,4.791,4296.1,4295.3,0.2926]
[1755841058200,3.917,4295.5,4295.3,0.2926]
[1755841058385,6.917,4295.4,4295.3,0.2926]
[1755841058789,6.917,4295.4,4295.0,0.001]
[1755841058790,7.156,4295.4,4295.0,0.001]
[1755841058989,3.0,4295.1,4295.0,0.001]
[1755841059162,7.022,4295.1,4295.0,0.001]
[1755841059363,3.099,4295.1,4295.0,0.001]
[1755841059606,10.57491545,4295.1,4295.0,0.001]
[1755841061118,3.0,4295.1,4295.0,0.7562]
[1755841061469,6.924,4295.1,4295.0,0.7562]
[1755841064578,6.924,4295.1,4295.0,0.4636]
[1755841064783,6.924,4295.1,4295.0,0.7562]
[1755841066508,3.0,4295.1,4295.0,0.7562]
[1755841066710,3.924,4295.1,4295.0,0.7562]
[1755841069910,4.28846493,4295.1,4295.0,0.7562]
[1755841070223,4.29046493,4295.1,4295.0,0.7562]
[1755841071734,4.29046493,4295.1,4295.0,0.2936]
[1755841071895,4.59816493,4295.1,4295.0,0.001]
[1755841072095,4.29046493,4295.1,4295.0,0.2936]
[1755841072532,4.29046493,4295.1,4295.0,0.7562]
[1755841072936,4.29046493,4295.1,4295.0,0.2936]
[1755841075028,4.59816493,4295.1,4295.0,0.001]
[1755841075204,7.59816493,4295.1,4295.0,0.001]
[1755841075605,6.926,4295.1,4295.0,0.001]
[1755841077239,7.2323,4295.1,4295.0,0.001]
[1755841078741,7.2309,4295.1,4295.0,0.001]
[1755841078940,6.926,4295.1,4295.0,0.001]
[1755841079240,7.38951236,4295.1,4295.0,0.001]
[1755841080342,7.29051236,4295.1,4295.0,0.001]
[1755841080652,7.39021236,4295.1,4295.0,0.001]
[1755841081317,7.29051236,4295.1,4295.0,0.001]
[1755841081517,7.28651236,4295.1,4295.0,0.7562]
[1755841082417,7.28551236,4295.1,4295.0,0.7562]
[1755841083253,7.28551236,4295.1,4295.0,0.001]
[1755841083254,7.28811236,4295.1,4295.0,0.001]
[1755841083455,7.28551236,4295.1,4295.0,0.001]
[1755841083684,7.28551236,4295.1,4295.0,0.2936]
[1755841083861,7.28551236,4295.1,4295.0,0.7562]
[1755841083862,7.28651236,4295.1,4295.0,0.7562]
[1755841084222,7.28651236,4295.1,4295.0,0.001]
[1755841085031,7.28651236,4295.1,4295.0,0.2936]
[1755841085360,14.03742781,4295.1,4295.0,0.001]
[1755841085949,14.40822781,4295.1,4295.0,0.001]
[1755841086341,14.04371545,4295.1,4295.0,0.001]
[1755841089091,14.4082918,4295.1,4295.0,0.001]
[1755841090944,10.1154918,4295.1,4295.0,0.001]
[1755841091245,21.0434918,4295.1,4295.0,0.001]
[1755841091447,21.4169918,4295.1,4295.0,0.001]
[1755841092057,21.0434918,4295.1,4295.0,0.001]
[1755841092603,21.4169918,4295.1,4295.0,0.001]
[1755841093281,51.91943196,4295.1,4295.0,0.001]
[1755841093858,44.91943196,4295.1,4295.0,0.001]
[1755841095857,44.54593196,4295.1,4295.0,0.001]
[1755841096054,44.0434918,4295.1,4295.0,0.001]
[1755841097195,40.1154918,4295.1,4295.0,0.001]
[1755841097364,51.0404918,4295.1,4295.0,0.001]
[1755841098195,50.67591545,4295.1,4295.0,0.001]
[1755841099501,51.04661545,4295.1,4295.0,0.001]
[1755841100089,50.67591545,4295.1,4295.0,0.001]
[1755841100965,51.04049472,4295.1,4295.0,0.001]
[1755841102398,51.54280617,4295.1,4295.0,0.001]
[1755841106140,51.1782269,4295.1,4295.0,0.001]
[1755841106738,9.65191545,4294.7,4294.6,0.001]
[1755841107042,43.67361545,4294.7,4294.6,0.001]
[1755841107405,43.57191545,4294.7,4294.6,0.001]
[1755841107739,6.92,4294.7,4294.6,0.732]
[1755841107899,5.599,4295.2,4294.6,0.732]
[1755841108100,3.921,4295.1,4294.7,0.4434]
[1755841108312,3.0,4295.1,4295.0,0.2876]
[1755841108513,3.0,4295.1,4295.0,0.731]
[1755841108514,6.923,4295.1,4295.0,0.731]
[1755841109034,7.0,4295.0,4294.6,0.001]
[1755841109220,3.0,4294.8,4294.6,0.001]
[1755841109422,3.923,4294.7,4294.6,0.001]
[1755841109841,0.36451472,4295.1,4294.6,0.2886]
[1755841110344,3.923,4295.0,4294.6,0.2886]
[1755841110543,0.36451472,4295.1,4294.6,0.55052639]
[1755841110716,3.926,4295.0,4294.6,0.2886]
[1755841110902,3.926,4295.0,4294.7,0.4434]
[1755841111103,3.926,4295.0,4294.9,0.2876]
[1755841111430,3.926,4295.0,4294.9,0.731]
[1755841111803,6.926,4295.0,4294.9,0.2876]
[1755841112118,6.926,4295.0,4294.9,0.731]
[1755841112119,3.0,4295.0,4294.9,0.731]
[1755841112309,6.927,4295.0,4294.9,0.731]
[1755841112713,6.929,4295.0,4294.9,0.731]
[1755841113005,3.0,4294.9,4294.6,0.001]
[1755841113233,3.0,4294.7,4294.6,0.001]
[1755841113540,3.0,4294.7,4294.6,0.4444]
[1755841113726,3.0,4294.7,4294.6,0.2886]
[1755841114510,3.0,4294.7,4294.6,0.732]
[1755841114722,3.0,4294.7,4294.6,0.2886]
[1755841114935,3.0,4295.0,4294.6,0.732]
[1755841115137,7.01643017,4295.1,4294.6,0.2886]
[1755841115138,3.929,4294.9,4294.6,0.2886]
[1755841115448,3.929,4294.9,4294.6,0.732]
[1755841115651,3.929,4294.9,4294.7,0.4434]
[1755841115818,3.929,4294.9,4294.8,0.2876]
[1755841116416,4.6853,4294.9,4294.6,0.001]
[1755841117249,4.2193,4294.9,4294.6,0.001]
[1755841118658,3.929,4294.9,4294.6,0.001]
[1755841118854,3.0,4294.9,4294.8,0.2964]
[1755841119074,6.929,4294.9,4294.8,0.2964]
[1755841119274,6.929,4294.9,4294.8,0.7497]
[1755841119275,7.29351848,4294.9,4294.8,0.7497]
[1755841119575,7.57931848,4294.9,4294.6,0.001]
[1755841119941,7.29351848,4294.9,4294.8,0.2964]
[1755841120782,7.29351848,4294.9,4294.6,0.001]
[1755841121078,3.36451848,4294.9,4294.8,0.2964]
[1755841121289,7.29451848,4294.9,4294.8,0.2964]
[1755841121646,7.58031848,4294.9,4294.6,0.001]
[1755841122381,0.4389,4294.8,4294.6,0.001]
[1755841122576,7.2148,4294.7,4294.6,0.001]
[1755841123077,6.929,4294.7,4294.6,0.001]
[1755841123884,6.929,4294.7,4294.6,0.2974]
[1755841124853,6.929,4294.7,4294.6,0.001]
[1755841125052,6.929,4294.7,4294.6,0.2974]
[1755841127679,8.721,4294.7,4294.6,0.2974]
[1755841128242,4.792,4294.7,4294.6,0.7507]
[1755841128460,8.717,4294.7,4294.6,0.7507]
[1755841128666,9.08151968,4294.7,4294.6,0.7507]
[1755841131584,16.01923513,4294.7,4294.6,0.001]
[1755841131752,16.45813513,4294.7,4294.6,0.001]
[1755841133964,9.80621968,4294.7,4294.6,0.001]
[1755841134167,16.45813513,4294.7,4294.6,0.001]
[1755841134377,12.09423513,4294.7,4294.6,0.001]
[1755841134560,16.02223513,4294.7,4294.6,0.001]
[1755841135255,16.46113513,4294.7,4294.6,0.001]
[1755841136597,16.09661545,4294.7,4294.6,0.001]
[1755841139898,16.46120744,4294.7,4294.6,0.001]
[1755841140474,16.46120744,4294.7,4294.5,0.001]
[1755841140475,3.0,4294.6,4294.3,0.001]
[1755841140792,3.2858,4294.4,4294.3,0.001]
[1755841140997,4.00730559,4294.4,4294.3,0.001]
[1755841141161,4.57729079,4294.4,4294.3,0.001]
[1755841141363,4.22782709,4294.4,4294.3,0.001]
[1755841141599,4.57738762,4294.4,4294.3,0.001]
[1755841141761,4.44630242,4294.4,4294.3,0.001]
[1755841142676,4.22782709,4294.4,4294.3,0.001]
[1755841142875,4.44606359,4294.4,4294.3,0.001]
[1755841144298,4.22782709,4294.4,4294.3,0.001]
[1755841144679,0.66,4294.1,4293.7,0.001]
[1755841145003,7.2128,4294.0,4293.7,0.001]
[1755841145164,7.6517,4294.0,4293.7,0.001]
[1755841145363,38.15408971,4294.0,4293.7,0.001]
[1755841145767,38.81408971,4294.0,4293.7,0.001]
[1755841145989,33.66,4293.9,4293.7,0.001]
[1755841146196,30.0,4293.8,4293.4,0.001]
[1755841146361,9.93771545,4293.5,4293.4,0.001]
[1755841146565,19.46571545,4293.5,4293.4,0.001]
[1755841146811,19.90461545,4293.5,4293.4,0.001]
[1755841147502,19.90461545,4293.5,4292.8,0.021]
[1755841147503,3.0,4293.3,4292.8,0.021]
[1755841147701,9.93771545,4292.9,4292.8,0.021]
[1755841148004,15.65571545,4292.9,4292.8,0.021]
[1755841148206,16.11421545,4292.9,4292.8,0.021]
[1755841148894,16.47896705,4292.9,4292.8,0.021]
[1755841152518,17.13896705,4292.9,4292.8,0.021]
[1755841152879,47.13896705,4292.9,4292.8,0.021]
[1755841154907,17.13896705,4292.9,4292.8,0.021]
[1755841156810,47.13896705,4292.9,4292.8,0.021]
[1755841159926,54.13896705,4292.9,4292.8,0.021]
[1755841160157,53.68046705,4292.9,4292.8,0.021]
[1755841161590,54.13896705,4292.9,4292.8,0.021]
[1755841161985,50.21296705,4292.9,4292.8,0.021]
[1755841162226,54.13396705,4292.9,4292.8,0.021]
[1755841162631,53.67546705,4292.9,4292.8,0.021]
[1755841163333,54.13396705,4292.9,4292.8,0.021]
[1755841164932,54.63535655,4292.9,4292.8,0.021]
[1755841165142,54.27060495,4292.9,4292.8,0.021]
[1755841166232,61.26060495,4292.9,4292.8,0.021]
[1755841168410,61.62538534,4292.9,4292.8,0.021]
[1755841168629,61.75617367,4292.9,4292.8,0.021]
[1755841169125,61.26060495,4292.9,4292.8,0.021]
[1755841169324,62.23601944,4292.9,4292.8,0.021]
[1755841169691,62.23601565,4292.9,4292.8,0.021]
[1755841169900,61.60951776,4292.9,4292.8,0.021]
[1755841170245,61.26060495,4292.9,4292.8,0.021]
[1755841171515,62.60090407,4292.9,4292.8,0.021]
[1755841172325,62.60097034,4292.9,4292.8,0.021]
[1755841172538,61.97447245,4292.9,4292.8,0.021]
[1755841172769,61.97447245,4292.9,4292.3,0.001]
[1755841172770,3.66,4292.8,4292.3,0.001]
[1755841172923,6.96491545,4292.4,4292.3,0.001]
[1755841173257,6.96491545,4292.4,4292.1,0.001]
[1755841173258,33.66,4292.3,4292.1,0.001]
[1755841173432,38.3923895,4292.2,4292.1,0.001]
[1755841173622,39.20023782,4292.2,4292.1,0.001]
[1755841173938,38.74173782,4292.2,4292.1,0.001]
[1755841174105,39.73519089,4292.2,4292.1,0.001]
[1755841174519,38.76319089,4292.2,4292.1,0.7546]
[1755841175219,38.76319089,4292.2,4292.1,0.2903]
[1755841176448,38.39834463,4292.2,4292.1,0.7546]
[1755841177642,38.39834463,4292.2,4292.1,0.2903]